[Event "Open NK Rapid 2025 bord 26-50"]
[Site "Helmond, Netherlands"]
[Date "2025.05.03"]
[Round "6.16"]
[White "De Oude, Sybe"]
[Black "Mau-Asam, LÃ©on"]
[Result "1/2-1/2"]
[TimeControl "15 min +5 sec increment"]
[WhiteFideId "40110052"]
[BlackFideId "40105890"]
[WhiteElo "1914"]
[BlackElo "1795"]

1. e4 {[%clk 00:15:08]} {[%emt 00:00:02]} c5 {[%clk 00:15:02]} {[%emt
00:00:08]} 2. Nc3 {[%clk 00:15:12]} {[%emt 00:00:02]} Nc6 {[%clk 00:15:05]}
{[%emt 00:00:01]} 3. f4 {[%clk 00:15:16]} {[%emt 00:00:02]} e6 {[%clk
00:15:08]} {[%emt 00:00:02]} 4. Nf3 {[%clk 00:15:19]} {[%emt 00:00:02]} Qc7
{[%clk 00:15:12]} {[%emt 00:00:01]} 5. d3 {[%clk 00:14:25]} {[%emt 00:00:59]}
d6 {[%clk 00:15:03]} {[%emt 00:00:14]} 6. Be2 {[%clk 00:14:22]} {[%emt
00:00:08]} Nf6 {[%clk 00:14:55]} {[%emt 00:00:10]} 7. O-O {[%clk 00:14:16]}
{[%emt 00:00:14]} Be7 {[%clk 00:14:56]} {[%emt 00:00:04]} 8. a3 {[%clk
00:14:08]} {[%emt 00:00:14]} O-O {[%clk 00:14:39]} {[%emt 00:00:20]} 9. Qe1
{[%clk 00:14:06]} {[%emt 00:00:08]} a6 {[%clk 00:14:15]} {[%emt 00:00:29]} 10.
Qg3 {[%clk 00:13:35]} {[%emt 00:00:36]} Nd4 {[%clk 00:13:31]} {[%emt 00:00:49]}
11. Bd1 {[%clk 00:13:20]} {[%emt 00:00:20]} Nc6 {[%clk 00:12:28]} {[%emt
00:01:08]} 12. Nh4 {[%clk 00:12:28]} {[%emt 00:00:57]} Re8 {[%clk 00:09:34]}
{[%emt 00:02:58]} 13. f5 {[%clk 00:12:16]} {[%emt 00:00:18]} e5 {[%clk
00:09:31]} {[%emt 00:00:08]} 14. Bh6 {[%clk 00:11:10]} {[%emt 00:01:11]} Bf8
{[%clk 00:09:33]} {[%emt 00:00:02]} 15. Nd5 {[%clk 00:09:49]} {[%emt 00:01:27]}
Nxd5 {[%clk 00:07:37]} {[%emt 00:02:01]} 16. exd5 {[%clk 00:09:52]} {[%emt
00:00:02]} Ne7 {[%clk 00:07:37]} {[%emt 00:00:05]} 17. f6 {[%clk 00:08:54]}
{[%emt 00:01:03]} Ng6 {[%clk 00:07:27]} {[%emt 00:00:14]} 18. Nxg6 {[%clk
00:06:30]} {[%emt 00:02:30]} hxg6 {[%clk 00:07:25]} {[%emt 00:00:07]} 19. Bg5
{[%clk 00:05:08]} {[%emt 00:01:27]} Qb6 {[%clk 00:06:06]} {[%emt 00:01:23]} 20.
Qf2 {[%clk 00:04:03]} {[%emt 00:01:11]} Qc7 {[%clk 00:04:09]} {[%emt 00:02:02]}
21. h4 {[%clk 00:03:38]} {[%emt 00:00:29]} e4 {[%clk 00:03:15]} {[%emt
00:01:00]} 22. Re1 {[%clk 00:03:32]} {[%emt 00:00:11]} gxf6 {[%clk 00:02:38]}
{[%emt 00:00:41]} 23. Bxf6 {[%clk 00:03:30]} {[%emt 00:00:08]} b5 {[%clk
00:01:32]} {[%emt 00:01:11]} 24. dxe4 {[%clk 00:03:03]} {[%emt 00:00:31]} Bd7
{[%clk 00:00:52]} {[%emt 00:00:45]} 25. h5 {[%clk 00:02:58]} {[%emt 00:00:10]}
Bg7 {[%clk 00:00:55]} {[%emt 00:00:02]} 26. hxg6 {[%clk 00:02:44]} {[%emt
00:00:19]} fxg6 {[%clk 00:00:53]} {[%emt 00:00:07]} 27. Bxg7 {[%clk 00:02:42]}
{[%emt 00:00:07]} Kxg7 {[%clk 00:00:57]} {[%emt 00:00:02]} 28. Qg3 {[%clk
00:02:24]} {[%emt 00:00:22]} Re5 {[%clk 00:00:47]} {[%emt 00:00:15]} 29. Bf3
{[%clk 00:01:48]} {[%emt 00:00:42]} Rae8 {[%clk 00:00:28]} {[%emt 00:00:23]} 30.
Rf1 {[%clk 00:01:35]} {[%emt 00:00:19]} Bc8 {[%clk 00:00:16]} {[%emt 00:00:17]}
31. Rae1 {[%clk 00:01:33]} {[%emt 00:00:06]} a5 {[%clk 00:00:17]} {[%emt
00:00:04]} 32. Qf4 {[%clk 00:01:07]} {[%emt 00:00:31]} Rf8 {[%clk 00:00:17]}
{[%emt 00:00:05]} 33. Qg3 {[%clk 00:01:08]} {[%emt 00:00:05]} Rfe8 {[%clk
00:00:21]} {[%emt 00:00:01]} 34. Rf2 {[%clk 00:01:05]} {[%emt 00:00:08]} Rxd5
{[%clk 00:00:14]} {[%emt 00:00:12]} 35. Ref1 {[%clk 00:00:29]} {[%emt
00:00:41]} Rde5 {[%clk 00:00:13]} {[%emt 00:00:06]} 36. Rd1 {[%clk 00:00:29]}
{[%emt 00:00:05]} Bb7 {[%clk 00:00:14]} {[%emt 00:00:04]} 37. Re2 {[%clk
00:00:29]} {[%emt 00:00:04]} R8e6 {[%clk 00:00:12]} {[%emt 00:00:08]} 38. Qf4
{[%clk 00:00:28]} {[%emt 00:00:06]} Qe7 {[%clk 00:00:08]} {[%emt 00:00:08]} 39.
Qg3 {[%clk 00:00:32]} {[%emt 00:00:02]} Bxe4 {[%clk 00:00:10]} {[%emt
00:00:03]} 40. Bxe4 {[%clk 00:00:34]} {[%emt 00:00:02]} Rxe4 {[%clk 00:00:14]}
{[%emt 00:00:02]} 41. Rxe4 {[%clk 00:00:35]} {[%emt 00:00:04]} Rxe4 {[%clk
00:00:18]} {[%emt 00:00:01]} 42. Qc3+ {[%clk 00:00:34]} {[%emt 00:00:06]} Qf6
{[%clk 00:00:12]} {[%emt 00:00:10]} 43. Qxf6+ {[%clk 00:00:23]} {[%emt
00:00:17]} Kxf6 {[%clk 00:00:15]} {[%emt 00:00:02]} 44. Rxd6+ {[%clk 00:00:27]}
Re6 {[%clk 00:00:16]} {[%emt 00:00:04]} 45. Rd2 {[%clk 00:00:14]} {[%emt
00:00:18]} b4 {[%clk 00:00:13]} {[%emt 00:00:08]} 46. axb4 {[%clk 00:00:18]}
{[%emt 00:00:01]} cxb4 {[%clk 00:00:15]} {[%emt 00:00:03]} 47. Kf2 {[%clk
00:00:22]} Kf5 {[%clk 00:00:17]} {[%emt 00:00:03]} 48. Rd5+ {[%clk 00:00:25]}
{[%emt 00:00:01]} Re5 {[%clk 00:00:22]} 49. Rd3 {[%clk 00:00:25]} {[%emt
00:00:06]} a4 {[%clk 00:00:24]} {[%emt 00:00:03]} 50. Kf3 {[%clk 00:00:24]}
{[%emt 00:00:05]} Rb5 {[%clk 00:00:23]} {[%emt 00:00:06]} 51. Rd4 {[%clk
00:00:23]} {[%emt 00:00:06]} g5 {[%clk 00:00:22]} {[%emt 00:00:05]} 52. g4+
{[%clk 00:00:26]} {[%emt 00:00:03]} Kg6 {[%clk 00:00:15]} {[%emt 00:00:12]} 53.
Ke4 {[%clk 00:00:30]} b3 {[%clk 00:00:19]} {[%emt 00:00:01]} 54. cxb3 {[%clk
00:00:28]} {[%emt 00:00:07]} Rxb3 {[%clk 00:00:18]} {[%emt 00:00:06]} 55. Rxa4
{[%clk 00:00:30]} {[%emt 00:00:03]} Rxb2 {[%clk 00:00:21]} {[%emt 00:00:02]} 56.
Ra6+ {[%clk 00:00:29]} {[%emt 00:00:05]} Kg7 {[%clk 00:00:20]} {[%emt
00:00:05]} 57. Ra5 {[%clk 00:00:26]} {[%emt 00:00:09]} Kg6 {[%clk 00:00:23]}
{[%emt 00:00:03]} 58. Ra6+ {[%clk 00:00:25]} {[%emt 00:00:07]} Kg7 {[%clk
00:00:27]} 59. Ra5 {[%emt 00:00:56]} 1/2-1/2

[Event "Open NK Rapid 2025 bord 26-50"]
[Site "Helmond, Netherlands"]
[Date "2025.05.03"]
[Round "6.17"]
[White "Veldhuyzen, Ywein"]
[Black "Kryshtopa, Dmytro"]
[Result "0-1"]
[TimeControl "15 min +5 sec increment"]
[WhiteFideId "1095773"]
[BlackFideId "34160876"]
[WhiteElo "1894"]
[BlackElo "1791"]

1. d4 {[%clk 00:15:08]} {[%emt 00:00:02]} Nf6 {[%clk 00:13:11]} {[%emt
00:01:59]} 2. c4 {[%clk 00:15:10]} {[%emt 00:00:03]} c5 {[%clk 00:13:13]}
{[%emt 00:00:03]} 3. e3 {[%clk 00:15:10]} {[%emt 00:00:05]} cxd4 {[%clk
00:13:08]} {[%emt 00:00:10]} 4. exd4 {[%clk 00:15:13]} {[%emt 00:00:02]} d5
{[%clk 00:13:12]} 5. Nc3 {[%clk 00:15:10]} {[%emt 00:00:07]} e6 {[%clk
00:13:12]} {[%emt 00:00:05]} 6. Nf3 {[%clk 00:15:13]} {[%emt 00:00:02]} Bb4
{[%clk 00:13:09]} {[%emt 00:00:09]} 7. Bd2 {[%clk 00:14:59]} {[%emt 00:00:18]}
O-O {[%clk 00:12:27]} {[%emt 00:00:47]} 8. Be2 {[%clk 00:15:02]} {[%emt
00:00:03]} dxc4 {[%clk 00:12:23]} {[%emt 00:00:09]} 9. Bxc4 {[%clk 00:15:05]}
{[%emt 00:00:02]} Nc6 {[%clk 00:12:08]} {[%emt 00:00:20]} 10. Be3 {[%clk
00:14:18]} {[%emt 00:00:51]} Nd5 {[%clk 00:11:07]} {[%emt 00:01:06]} 11. Rc1
{[%clk 00:13:45]} {[%emt 00:00:38]} b6 {[%clk 00:09:48]} {[%emt 00:01:25]} 12.
O-O {[%clk 00:13:46]} {[%emt 00:00:03]} Bxc3 {[%clk 00:09:45]} {[%emt
00:00:08]} 13. bxc3 {[%clk 00:13:50]} {[%emt 00:00:03]} Bb7 {[%clk 00:09:46]}
{[%emt 00:00:04]} 14. Bg5 {[%clk 00:13:45]} {[%emt 00:00:09]} Qd7 {[%clk
00:09:36]} {[%emt 00:00:15]} 15. Bd3 {[%clk 00:13:41]} {[%emt 00:00:08]} Rac8
{[%clk 00:09:16]} {[%emt 00:00:25]} 16. Bh4 {[%clk 00:13:28]} {[%emt 00:00:18]}
Nce7 {[%clk 00:07:15]} {[%emt 00:02:07]} 17. Ne5 {[%clk 00:13:26]} {[%emt
00:00:06]} Qe8 {[%clk 00:06:53]} {[%emt 00:00:28]} 18. Qb3 {[%clk 00:12:04]}
{[%emt 00:01:27]} Ng6 {[%clk 00:06:48]} {[%emt 00:00:11]} 19. Bb5 {[%clk
00:11:47]} {[%emt 00:00:20]} Nxh4 {[%clk 00:06:08]} {[%emt 00:00:45]} 20. Bxe8
{[%clk 00:11:51]} {[%emt 00:00:01]} Rfxe8 {[%clk 00:06:11]} {[%emt 00:00:02]}
21. f3 {[%clk 00:11:06]} {[%emt 00:00:50]} Nf4 {[%clk 00:05:14]} {[%emt
00:01:02]} 22. Rc2 {[%clk 00:10:23]} {[%emt 00:00:48]} f6 {[%clk 00:05:08]}
{[%emt 00:00:11]} 23. Ng4 {[%clk 00:10:20]} {[%emt 00:00:07]} Ba6 {[%clk
00:04:12]} {[%emt 00:01:02]} 24. Re1 {[%clk 00:09:00]} {[%emt 00:01:25]} Bc4
{[%clk 00:04:06]} {[%emt 00:00:11]} 25. Qb1 {[%clk 00:08:44]} {[%emt 00:00:20]}
Bd3 {[%clk 00:04:06]} {[%emt 00:00:06]} 26. Qc1 {[%clk 00:08:35]} {[%emt
00:00:14]} Bxc2 {[%clk 00:04:04]} {[%emt 00:00:07]} 27. Qxf4 {[%clk 00:08:27]}
{[%emt 00:00:13]} Rxc3 {[%clk 00:03:26]} {[%emt 00:00:42]} 28. Nxf6+ {[%clk
00:08:29]} {[%emt 00:00:03]} gxf6 {[%clk 00:02:57]} 29. Qxh4 {[%clk 00:08:35]}
{[%emt 00:00:41]} Kf7 {[%emt 00:00:43]} 30. Qh5+ {[%clk 00:07:36]} {[%emt
00:00:27]} Bg6 {[%clk 00:02:57]} {[%emt 00:00:07]} 31. Qb5 {[%clk 00:07:38]}
{[%emt 00:00:02]} Re7 {[%clk 00:02:52]} {[%emt 00:00:11]} 32. a4 {[%clk
00:07:28]} {[%emt 00:00:15]} Rec7 {[%clk 00:02:45]} {[%emt 00:00:12]} 33. a5
{[%clk 00:07:17]} {[%emt 00:00:16]} Bd3 {[%clk 00:02:46]} {[%emt 00:00:04]} 34.
Qb4 {[%clk 00:07:00]} {[%emt 00:00:22]} R3c4 {[%clk 00:02:44]} {[%emt
00:00:07]} 35. Qb3 {[%clk 00:06:54]} {[%emt 00:00:11]} Bc2 {[%clk 00:02:27]}
{[%emt 00:00:21]} 36. Qa2 {[%clk 00:06:57]} {[%emt 00:00:02]} b5 {[%clk
00:02:25]} {[%emt 00:00:08]} 37. Qb2 {[%clk 00:05:38]} {[%emt 00:01:25]} b4
{[%clk 00:01:57]} {[%emt 00:00:33]} 38. Re3 {[%clk 00:04:47]} {[%emt 00:00:55]}
b3 {[%clk 00:01:50]} {[%emt 00:00:12]} 39. f4 {[%clk 00:03:52]} {[%emt
00:00:59]} Rd7 {[%clk 00:01:29]} {[%emt 00:00:27]} 40. f5 {[%clk 00:03:24]}
{[%emt 00:00:33]} exf5 {[%clk 00:00:47]} {[%emt 00:00:47]} 41. Rxb3 {[%clk
00:03:05]} {[%emt 00:00:23]} Bxb3 {[%clk 00:00:49]} {[%emt 00:00:04]} 42. Qxb3
{[%emt 00:00:03]} Rdxd4 {[%clk 00:00:18]} {[%emt 00:00:34]} 43. Qb7+ {[%clk
00:03:13]} Kg6 {[%clk 00:00:20]} {[%emt 00:00:03]} 44. Qxa7 {[%clk 00:03:16]}
{[%emt 00:00:02]} Rd2 {[%clk 00:00:12]} {[%emt 00:00:13]} 45. Qe3 {[%clk
00:03:13]} {[%emt 00:00:08]} Rc1+ {[%clk 00:00:08]} {[%emt 00:00:09]} 0-1

[Event "Open NK Rapid 2025 bord 26-50"]
[Site "Helmond, Netherlands"]
[Date "2025.05.03"]
[Round "6.18"]
[White "Zhang, Xiheng"]
[Black "Jansen, Marijn"]
[Result "1-0"]
[TimeControl "15 min +5 sec increment"]
[WhiteFideId "40102386"]
[BlackFideId "1089587"]
[WhiteElo "1778"]
[BlackElo "1880"]

1. e4 {[%clk 00:15:08]} c6 {[%clk 00:15:09]} {[%emt 00:00:02]} 2. d4 {[%clk
00:15:12]} {[%emt 00:00:01]} d5 {[%clk 00:15:13]} {[%emt 00:00:01]} 3. exd5
{[%clk 00:15:16]} {[%emt 00:00:02]} cxd5 {[%clk 00:15:16]} {[%emt 00:00:01]} 4.
c4 {[%clk 00:15:20]} {[%emt 00:00:01]} Nf6 {[%clk 00:15:19]} {[%emt 00:00:02]}
5. Nc3 {[%clk 00:15:23]} {[%emt 00:00:02]} Nc6 {[%clk 00:15:23]} {[%emt
00:00:01]} 6. Nf3 {[%clk 00:15:27]} {[%emt 00:00:01]} Bg4 {[%clk 00:15:27]}
{[%emt 00:00:01]} 7. cxd5 {[%clk 00:15:30]} {[%emt 00:00:03]} Nxd5 {[%clk
00:15:29]} {[%emt 00:00:02]} 8. Qb3 {[%clk 00:15:33]} {[%emt 00:00:03]} Bxf3
{[%clk 00:14:26]} {[%emt 00:01:07]} 9. gxf3 {[%clk 00:15:35]} {[%emt 00:00:02]}
Nxc3 {[%clk 00:12:37]} {[%emt 00:01:55]} 10. bxc3 {[%clk 00:15:38]} {[%emt
00:00:01]} Qc7 {[%clk 00:12:36]} {[%emt 00:00:06]} 11. Rb1 {[%clk 00:14:40]}
{[%emt 00:01:04]} Rb8 {[%clk 00:12:00]} {[%emt 00:00:41]} 12. d5 {[%clk
00:13:22]} {[%emt 00:01:23]} Ne5 {[%clk 00:11:45]} {[%emt 00:00:20]} 13. Bb5+
{[%clk 00:11:40]} {[%emt 00:01:48]} Nd7 {[%clk 00:11:43]} {[%emt 00:00:06]} 14.
Be3 {[%clk 00:10:06]} {[%emt 00:01:39]} a6 {[%clk 00:11:17]} {[%emt 00:00:31]}
15. Bxd7+ {[%clk 00:08:39]} {[%emt 00:01:33]} Qxd7 {[%clk 00:11:21]} {[%emt
00:00:01]} 16. O-O {[%clk 00:07:51]} {[%emt 00:00:52]} Qh3 {[%clk 00:10:48]}
{[%emt 00:00:38]} 17. Bf4 {[%clk 00:07:18]} {[%emt 00:00:38]} Qxf3 {[%clk
00:09:24]} {[%emt 00:01:29]} 18. Bxb8 {[%clk 00:07:14]} {[%emt 00:00:10]} h5
{[%clk 00:09:27]} {[%emt 00:00:01]} 19. c4 {[%clk 00:06:59]} {[%emt 00:00:20]}
Qg4+ {[%clk 00:09:31]} {[%emt 00:00:01]} 20. Qg3 {[%clk 00:07:03]} Qxc4 {[%clk
00:09:35]} {[%emt 00:00:01]} 21. Rfc1 {[%clk 00:06:49]} {[%emt 00:00:18]} 1-0

[Event "Open NK Rapid 2025 bord 26-50"]
[Site "Helmond, Netherlands"]
[Date "2025.05.03"]
[Round "6.19"]
[White "Kriens, Hans"]
[Black "Thijssen, Freek"]
[Result "1-0"]
[TimeControl "15 min +5 sec increment"]
[WhiteFideId "1093665"]
[BlackFideId "1091840"]
[WhiteElo "1878"]
[BlackElo "1790"]

1. d4 {[%clk 00:15:07]} {[%emt 00:00:02]} d5 {[%clk 00:15:04]} {[%emt
00:00:08]} 2. c4 {[%clk 00:15:06]} {[%emt 00:00:06]} e6 {[%clk 00:15:06]}
{[%emt 00:00:03]} 3. Nc3 {[%clk 00:15:05]} {[%emt 00:00:07]} c6 {[%clk
00:15:01]} {[%emt 00:00:09]} 4. Bf4 {[%clk 00:14:49]} {[%emt 00:00:21]} dxc4
{[%clk 00:14:03]} {[%emt 00:01:03]} 5. a4 {[%clk 00:13:39]} {[%emt 00:01:16]}
Bb4 {[%clk 00:13:58]} {[%emt 00:00:10]} 6. e3 {[%clk 00:13:29]} {[%emt
00:00:15]} b5 {[%clk 00:13:32]} {[%emt 00:00:30]} 7. axb5 {[%clk 00:13:28]}
{[%emt 00:00:06]} cxb5 {[%clk 00:13:34]} {[%emt 00:00:03]} 8. Qf3 {[%clk
00:13:31]} {[%emt 00:00:02]} Qd5 {[%clk 00:13:18]} {[%emt 00:00:22]} 9. Bxb8
{[%clk 00:13:22]} {[%emt 00:00:14]} Rxb8 {[%clk 00:13:09]} {[%emt 00:00:14]} 10.
Rxa7 {[%clk 00:13:25]} {[%emt 00:00:02]} Nf6 {[%clk 00:13:01]} {[%emt
00:00:12]} 11. Qg3 {[%clk 00:13:17]} {[%emt 00:00:13]} O-O {[%clk 00:12:41]}
{[%emt 00:00:26]} 12. Qxb8 {[%clk 00:13:12]} {[%emt 00:00:10]} Ne4 {[%clk
00:12:19]} {[%emt 00:00:26]} 13. Qe5 {[%clk 00:12:53]} {[%emt 00:00:24]} Nxc3
{[%clk 00:12:08]} {[%emt 00:00:17]} 14. bxc3 {[%clk 00:12:52]} {[%emt
00:00:06]} Bxc3+ {[%clk 00:12:11]} {[%emt 00:00:02]} 15. Kd1 {[%clk 00:12:43]}
{[%emt 00:00:13]} b4 {[%clk 00:11:09]} {[%emt 00:01:08]} 16. Ne2 {[%clk
00:12:18]} {[%emt 00:00:30]} Bb2 {[%clk 00:10:01]} {[%emt 00:01:13]} 17. Nf4
{[%clk 00:11:31]} {[%emt 00:00:52]} Qxe5 {[%clk 00:09:35]} {[%emt 00:00:30]} 18.
dxe5 {[%clk 00:11:34]} {[%emt 00:00:02]} c3 {[%clk 00:09:11]} {[%emt 00:00:30]}
19. Kc2 {[%clk 00:11:23]} {[%emt 00:00:16]} Rd8 {[%clk 00:08:50]} {[%emt
00:00:26]} 20. Nd3 {[%clk 00:11:14]} {[%emt 00:00:13]} f6 {[%clk 00:07:54]}
{[%emt 00:01:02]} 21. Nxb4 {[%clk 00:10:39]} {[%emt 00:00:40]} Rd2+ {[%clk
00:07:51]} {[%emt 00:00:07]} 22. Kb3 {[%clk 00:10:43]} {[%emt 00:00:01]} 1-0

[Event "Open NK Rapid 2025 bord 26-50"]
[Site "Helmond, Netherlands"]
[Date "2025.05.03"]
[Round "6.20"]
[White "Rohatgi, Kushagra"]
[Black "Pol, Nico"]
[Result "1-0"]
[TimeControl "15 min +5 sec increment"]
[WhiteFideId "34603212"]
[BlackFideId "1064002"]
[WhiteElo "1774"]
[BlackElo "1878"]

1. e4 {[%clk 00:15:07]} {[%emt 00:00:01]} d5 {[%clk 00:15:09]} {[%emt
00:00:02]} 2. exd5 {[%clk 00:15:10]} {[%emt 00:00:02]} Nf6 {[%clk 00:15:13]}
{[%emt 00:00:01]} 3. d4 {[%clk 00:15:08]} {[%emt 00:00:06]} Nxd5 {[%clk
00:15:17]} {[%emt 00:00:02]} 4. Nf3 {[%clk 00:15:10]} {[%emt 00:00:03]} Bg4
{[%clk 00:15:20]} {[%emt 00:00:02]} 5. Be2 {[%clk 00:15:04]} {[%emt 00:00:11]}
Nc6 {[%clk 00:15:20]} {[%emt 00:00:06]} 6. Bg5 {[%clk 00:14:32]} {[%emt
00:00:35]} h6 {[%clk 00:15:06]} {[%emt 00:00:19]} 7. Bh4 {[%clk 00:13:57]}
{[%emt 00:00:38]} g5 {[%clk 00:15:04]} {[%emt 00:00:10]} 8. Bg3 {[%clk
00:13:51]} {[%emt 00:00:11]} Bg7 {[%clk 00:15:08]} {[%emt 00:00:02]} 9. c3
{[%clk 00:13:42]} {[%emt 00:00:13]} O-O {[%clk 00:14:58]} {[%emt 00:00:16]} 10.
Qc2 {[%clk 00:13:26]} {[%emt 00:00:20]} a6 {[%clk 00:14:20]} {[%emt 00:00:44]}
11. Nxg5 {[%clk 00:12:44]} {[%emt 00:00:46]} Bxe2 {[%clk 00:13:46]} {[%emt
00:00:39]} 1-0

[Event "Open NK Rapid 2025 bord 26-50"]
[Site "Helmond, Netherlands"]
[Date "2025.05.03"]
[Round "6.21"]
[White "Baars, Tije"]
[Black "Cakmak, Metehan Tugra"]
[Result "0-1"]
[TimeControl "15 min +5 sec increment"]
[WhiteFideId "40102157"]
[BlackFideId "44583885"]
[WhiteElo "1870"]
[BlackElo "1787"]

1. d4 {[%clk 00:15:09]} Nf6 {[%clk 00:15:09]} {[%emt 00:00:02]} 2. Nc3 {[%clk
00:15:13]} {[%emt 00:00:01]} d5 {[%clk 00:15:12]} {[%emt 00:00:02]} 3. e4
{[%clk 00:15:17]} {[%emt 00:00:01]} Nxe4 {[%clk 00:15:07]} {[%emt 00:00:09]} 4.
Nxe4 {[%clk 00:15:21]} {[%emt 00:00:02]} dxe4 {[%clk 00:15:11]} {[%emt
00:00:01]} 5. Be3 {[%clk 00:15:25]} {[%emt 00:00:01]} Bf5 {[%clk 00:15:09]}
{[%emt 00:00:07]} 6. f3 {[%clk 00:15:27]} {[%emt 00:00:02]} exf3 {[%clk
00:15:12]} {[%emt 00:00:03]} 7. Nxf3 {[%clk 00:15:32]} {[%emt 00:00:01]} e6
{[%clk 00:15:07]} {[%emt 00:00:10]} 8. Bc4 {[%clk 00:15:15]} {[%emt 00:00:21]}
Nc6 {[%clk 00:15:06]} {[%emt 00:00:06]} 9. O-O {[%clk 00:14:44]} {[%emt
00:00:36]} Be7 {[%clk 00:15:04]} {[%emt 00:00:07]} 10. c3 {[%clk 00:13:47]}
{[%emt 00:01:03]} O-O {[%clk 00:14:58]} {[%emt 00:00:10]} 11. a4 {[%clk
00:12:07]} {[%emt 00:01:44]} a5 {[%clk 00:14:24]} {[%emt 00:00:40]} 12. Qb3
{[%clk 00:11:29]} {[%emt 00:00:43]} Qd7 {[%clk 00:13:06]} {[%emt 00:01:23]} 13.
Rad1 {[%clk 00:11:16]} {[%emt 00:00:18]} Be4 {[%clk 00:12:38]} {[%emt
00:00:34]} 14. Ne5 {[%clk 00:09:22]} {[%emt 00:01:58]} Nxe5 {[%clk 00:12:18]}
{[%emt 00:00:25]} 15. dxe5 {[%clk 00:09:26]} {[%emt 00:00:02]} Qc8 {[%clk
00:11:40]} {[%emt 00:00:43]} 16. Rd4 {[%clk 00:06:43]} {[%emt 00:02:46]} Bg6
{[%clk 00:11:28]} {[%emt 00:00:17]} 17. Rdf4 {[%clk 00:06:01]} {[%emt
00:00:47]} Bg5 {[%clk 00:10:38]} {[%emt 00:00:56]} 18. R4f3 {[%clk 00:05:28]}
{[%emt 00:00:38]} Bxe3+ {[%clk 00:10:39]} {[%emt 00:00:04]} 19. Rxe3 {[%clk
00:05:32]} {[%emt 00:00:01]} b6 {[%clk 00:10:39]} {[%emt 00:00:06]} 20. Qd1
{[%clk 00:04:38]} {[%emt 00:00:58]} Qd8 {[%emt 00:00:46]} 21. Qg4 {[%clk
00:04:11]} Qd2 {[%clk 00:09:58]} {[%emt 00:00:36]} 22. Re2 {[%clk 00:04:05]}
{[%emt 00:00:11]} Qh6 {[%clk 00:09:56]} {[%emt 00:00:03]} 23. Ref2 {[%clk
00:03:38]} {[%emt 00:00:35]} Rad8 {[%clk 00:09:21]} {[%emt 00:00:40]} 24. Qf3
{[%clk 00:02:20]} {[%emt 00:01:23]} Bf5 {[%clk 00:07:31]} {[%emt 00:01:56]} 25.
g4 {[%clk 00:02:06]} {[%emt 00:00:19]} Qg6 {[%clk 00:07:35]} {[%emt 00:00:02]}
26. h3 {[%clk 00:02:00]} {[%emt 00:00:11]} h5 {[%clk 00:07:34]} {[%emt
00:00:05]} 27. Be2 {[%clk 00:01:08]} {[%emt 00:00:56]} hxg4 {[%clk 00:07:02]}
{[%emt 00:00:37]} 28. hxg4 {[%clk 00:01:12]} {[%emt 00:00:02]} Bd3 {[%clk
00:06:54]} {[%emt 00:00:13]} 29. Bxd3 {[%clk 00:01:05]} {[%emt 00:00:11]} Rxd3
{[%clk 00:06:58]} {[%emt 00:00:02]} 30. Qf4 {[%clk 00:00:56]} {[%emt 00:00:13]}
Qh6 {[%clk 00:06:25]} {[%emt 00:00:40]} 31. Qxh6 {[%clk 00:00:38]} {[%emt
00:00:23]} gxh6 {[%clk 00:06:28]} {[%emt 00:00:01]} 32. Kg2 {[%clk 00:00:37]}
{[%emt 00:00:05]} Rfd8 {[%clk 00:06:22]} {[%emt 00:00:11]} 33. Rf6 {[%clk
00:00:35]} {[%emt 00:00:08]} Rd2+ {[%clk 00:06:25]} {[%emt 00:00:02]} 34. Kg3
{[%clk 00:00:30]} {[%emt 00:00:10]} R8d3+ {[%clk 00:06:20]} {[%emt 00:00:10]}
35. Kf4 {[%clk 00:00:22]} {[%emt 00:00:13]} Rxb2 {[%clk 00:06:07]} {[%emt
00:00:19]} 36. Rxh6 {[%clk 00:00:21]} {[%emt 00:00:05]} Rxc3 {[%clk 00:06:08]}
{[%emt 00:00:04]} 37. Rfh1 {[%clk 00:00:18]} {[%emt 00:00:08]} Kf8 {[%clk
00:05:52]} {[%emt 00:00:21]} 38. Kg5 {[%clk 00:00:18]} {[%emt 00:00:04]} Ke7
{[%emt 00:00:14]} 39. Rf1 {[%clk 00:00:19]} Rcc2 {[%clk 00:05:49]} {[%emt
00:00:04]} 40. Rh7 {[%clk 00:00:12]} {[%emt 00:00:13]} Rf2 {[%clk 00:05:53]}
{[%emt 00:00:01]} 41. Rc1 {[%clk 00:00:16]} Rbc2 {[%clk 00:05:53]} {[%emt
00:00:05]} 42. Rd1 {[%clk 00:00:14]} {[%emt 00:00:06]} Rc4 {[%clk 00:05:42]}
{[%emt 00:00:16]} 43. Rg1 {[%clk 00:00:06]} {[%emt 00:00:12]} Rxa4 {[%clk
00:05:38]} {[%emt 00:00:10]} 44. Rg3 {[%clk 00:00:09]} {[%emt 00:00:03]} Rff4
{[%clk 00:05:31]} {[%emt 00:00:11]} 45. Rh4 {[%clk 00:00:06]} {[%emt 00:00:08]}
Rac4 {[%clk 00:05:25]} {[%emt 00:00:10]} 46. Kh6 {[%clk 00:00:07]} {[%emt
00:00:04]} a4 {[%clk 00:05:27]} {[%emt 00:00:05]} 47. Rhh3 {[%clk 00:00:06]}
{[%emt 00:00:05]} Rxg4 {[%clk 00:05:27]} {[%emt 00:00:04]} 48. Rxg4 {[%clk
00:00:06]} {[%emt 00:00:05]} Rxg4 {[%clk 00:05:31]} {[%emt 00:00:02]} 49. Rc3
{[%clk 00:00:09]} {[%emt 00:00:02]} c5 {[%clk 00:05:33]} {[%emt 00:00:04]} 0-1